[Event "Titled Tuesday Blitz April 4 Early 2023"]
[White "Itkis, Boris"]
[Black "Gold_Ocean"]
[WhiteFideId "1209167"]
[WhiteElo "2216"]
[BlackElo "2651"]
[Result "0-1"]
[Round "01"]
[TimeControl "180+2"]
[Date "2023.04.04"]
[WhiteClock "0:00:56"]
[BlackClock "0:02:00"]

1. d4 {[%clk 0:02:45]}  Nf6 {[%clk 0:02:59]} 2. c4 {[%clk 0:02:44]}  c5 {[%clk 0:02:59]} 3. d5 {[%clk 0:02:43]}  e6 {[%clk 0:02:59]} 4. Nc3 {[%clk 0:02:43]}  exd5 {[%clk 0:03:00]} 5. cxd5 {[%clk 0:02:44]}  g6 {[%clk 0:03:00]} 6. e4 {[%clk 0:02:45]}  d6 {[%clk 0:03:01]} 7. f3 {[%clk 0:02:45]}  Bg7 {[%clk 0:03:01]} 8. Nge2 {[%clk 0:02:45]}  O-O {[%clk 0:03:01]} 9. Ng3 {[%clk 0:02:45]}  h5 {[%clk 0:03:01]} 10. Be2 {[%clk 0:02:44]}  h4 {[%clk 0:03:01]} 11. Nf1 {[%clk 0:02:44]}  Re8 {[%clk 0:03:01]} 12. Be3 {[%clk 0:02:44]}  a6 {[%clk 0:03:01]} 13. a4 {[%clk 0:02:44]}  Nbd7 {[%clk 0:03:01]} 14. Nd2 {[%clk 0:02:43]}  Ne5 {[%clk 0:03:01]} 15. O-O {[%clk 0:02:41]}  Bd7 {[%clk 0:03:01]} 16. h3 {[%clk 0:02:40]}  Bc8 {[%clk 0:02:53]} 17. a5 {[%clk 0:02:30]}  Rb8 {[%clk 0:02:51]} 18. Qc2 {[%clk 0:02:26]}  Ned7 {[%clk 0:02:39]} 19. Nc4 {[%clk 0:02:23]}  Qc7 {[%clk 0:02:39]} 20. f4 {[%clk 0:02:19]}  b5 {[%clk 0:02:35]} 21. axb6 {[%clk 0:02:20]}  Nxb6 {[%clk 0:02:35]} 22. Rae1 {[%clk 0:02:08]}  Nxc4 {[%clk 0:02:30]} 23. Bxc4 {[%clk 0:02:09]}  Nh5 {[%clk 0:02:31]} 24. e5 {[%clk 0:01:55]}  Rb4 {[%clk 0:02:16]} 25. exd6 {[%clk 0:01:37]}  Qd8 {[%clk 0:02:06]} 26. b3 {[%clk 0:01:13]}  Bf5 {[%clk 0:02:05]} 27. Bd3 {[%clk 0:01:06]}  Bxd3 {[%clk 0:02:03]} 28. Qxd3 {[%clk 0:01:06]}  Qxd6 {[%clk 0:02:03]} 29. Ne4 {[%clk 0:01:02]}  Rbxe4 {[%clk 0:02:00]} 30. Bxc5 {[%clk 0:00:56]}  Qxc5+ {[%clk 0:02:00]} 0-1


[Site "https://www.chess.com"]

[Event "Titled Tuesday Blitz April 4 Early 2023"]
[White "Sokolovsky, Yahli"]
[Black "Shukhman, Anna"]
[WhiteFideId "2820242"]
[BlackFideId "54180058"]
[WhiteElo "2316"]
[BlackElo "2125"]
[Result "1-0"]
[Round "01"]
[TimeControl "180+2"]
[Date "2023.04.04"]
[WhiteClock "0:00:19"]
[BlackClock "0:00:43"]

1. b3 {[%clk 0:02:58]}  Nf6 {[%clk 0:03:00]} 2. Bb2 {[%clk 0:02:57]}  g6 {[%clk 0:03:01]} 3. Nf3 {[%clk 0:02:50]}  Bg7 {[%clk 0:03:00]} 4. d4 {[%clk 0:02:51]}  O-O {[%clk 0:03:00]} 5. e3 {[%clk 0:02:52]}  d5 {[%clk 0:02:59]} 6. Bd3 {[%clk 0:02:51]}  c6 {[%clk 0:02:57]} 7. Nbd2 {[%clk 0:02:51]}  a5 {[%clk 0:02:50]} 8. a3 {[%clk 0:02:47]}  a4 {[%clk 0:02:47]} 9. b4 {[%clk 0:02:47]}  b5 {[%clk 0:02:46]} 10. O-O {[%clk 0:02:43]}  Nbd7 {[%clk 0:02:47]} 11. h3 {[%clk 0:02:34]}  Nb6 {[%clk 0:02:46]} 12. Ne5 {[%clk 0:02:34]}  Qc7 {[%clk 0:02:45]} 13. f4 {[%clk 0:02:32]}  Nc4 {[%clk 0:02:45]} 14. Bxc4 {[%clk 0:02:24]}  dxc4 {[%clk 0:02:35]} 15. e4 {[%clk 0:02:19]}  Rd8 {[%clk 0:02:33]} 16. Qe2 {[%clk 0:02:11]}  Be6 {[%clk 0:02:31]} 17. c3 {[%clk 0:01:51]}  Nh5 {[%clk 0:02:21]} 18. Qf3 {[%clk 0:01:43]}  f6 {[%clk 0:01:57]} 19. Ng4 {[%clk 0:01:42]}  f5 {[%clk 0:01:48]} 20. Ne5 {[%clk 0:01:37]}  Nf6 {[%clk 0:01:46]} 21. Rae1 {[%clk 0:01:32]}  fxe4 {[%clk 0:01:45]} 22. Nxe4 {[%clk 0:01:33]}  Bd5 {[%clk 0:01:45]} 23. Ng4 {[%clk 0:01:26]}  Nxe4 {[%clk 0:01:40]} 24. Rxe4 {[%clk 0:01:27]}  Rf8 {[%clk 0:01:38]} 25. Bc1 {[%clk 0:01:26]}  Rf7 {[%clk 0:01:29]} 26. Qe2 {[%clk 0:01:26]}  Bxe4 {[%clk 0:01:28]} 27. Qxe4 {[%clk 0:01:27]}  Raf8 {[%clk 0:01:28]} 28. Re1 {[%clk 0:01:22]}  Qd6 {[%clk 0:01:12]} 29. g3 {[%clk 0:01:21]}  Qd5 {[%clk 0:01:10]} 30. Qxd5 {[%clk 0:01:12]}  cxd5 {[%clk 0:01:11]} 31. Re6 {[%clk 0:01:12]}  h5 {[%clk 0:01:07]} 32. Ne3 {[%clk 0:01:11]}  Rf6 {[%clk 0:01:03]} 33. Rxf6 {[%clk 0:01:11]}  exf6 {[%clk 0:00:46]} 34. Nxd5 {[%clk 0:01:12]}  Re8 {[%clk 0:00:45]} 35. Kf2 {[%clk 0:01:12]}  f5 {[%clk 0:00:45]} 36. Nc7 {[%clk 0:01:07]}  Rb8 {[%clk 0:00:44]} 37. Be3 {[%clk 0:01:00]}  Kf7 {[%clk 0:00:44]} 38. h4 {[%clk 0:00:54]}  Ke7 {[%clk 0:00:44]} 39. Ke2 {[%clk 0:00:36]}  Rb7 {[%clk 0:00:31]} 40. Na6 {[%clk 0:00:36]}  Bf8 {[%clk 0:00:28]} 41. d5 {[%clk 0:00:30]}  Kd7 {[%clk 0:00:25]} 42. Bc5 {[%clk 0:00:27]}  Bd6 {[%clk 0:00:24]} 43. Ke3 {[%clk 0:00:22]}  Ke7 {[%clk 0:00:23]} 44. Kd4 {[%clk 0:00:21]}  Rd7 {[%clk 0:00:23]} 45. Nb8 {[%clk 0:00:17]}  Rc7 {[%clk 0:00:20]} 46. Nc6+ {[%clk 0:00:13]}  Kd7 {[%clk 0:00:20]} 47. Ne5+ {[%clk 0:00:14]}  Bxe5+ {[%clk 0:00:18]} 48. fxe5 {[%clk 0:00:14]}  g5 {[%clk 0:00:18]} 49. e6+ {[%clk 0:00:13]}  Ke8 {[%clk 0:00:18]} 50. hxg5 {[%clk 0:00:09]}  f4 {[%clk 0:00:17]} 51. gxf4 {[%clk 0:00:09]}  h4 {[%clk 0:00:18]} 52. Bd6 {[%clk 0:00:10]}  Rh7 {[%clk 0:00:18]} 53. f5 {[%clk 0:00:10]}  h3 {[%clk 0:00:18]} 54. f6 {[%clk 0:00:08]}  h2 {[%clk 0:00:18]} 55. f7+ {[%clk 0:00:08]}  Rxf7 {[%clk 0:00:18]} 56. exf7+ {[%clk 0:00:09]}  Kxf7 {[%clk 0:00:19]} 57. Bxh2 {[%clk 0:00:10]}  Kg6 {[%clk 0:00:20]} 58. Kc5 {[%clk 0:00:10]}  Kxg5 {[%clk 0:00:20]} 59. Kxb5 {[%clk 0:00:11]}  Kg4 {[%clk 0:00:20]} 60. Kxc4 {[%clk 0:00:12]}  Kf3 {[%clk 0:00:21]} 61. Kb5 {[%clk 0:00:12]}  Ke2 {[%clk 0:00:22]} 62. Kxa4 {[%clk 0:00:13]}  Kd3 {[%clk 0:00:23]} 63. Be5 {[%clk 0:00:12]}  Kc2 {[%clk 0:00:23]} 64. d6 {[%clk 0:00:13]}  Kb2 {[%clk 0:00:24]} 65. c4+ {[%clk 0:00:12]}  Kc2 {[%clk 0:00:25]} 66. c5 {[%clk 0:00:13]}  Kb1 {[%clk 0:00:25]} 67. b5 {[%clk 0:00:14]}  Kc2 {[%clk 0:00:25]} 68. b6 {[%clk 0:00:15]}  Kb1 {[%clk 0:00:26]} 69. c6 {[%clk 0:00:16]}  Kc2 {[%clk 0:00:27]} 70. d7 {[%clk 0:00:17]}  Kc1 {[%clk 0:00:28]} 71. c7 {[%clk 0:00:18]}  Kc2 {[%clk 0:00:29]} 72. b7 {[%clk 0:00:19]}  Kc1 {[%clk 0:00:30]} 73. d8=N {[%clk 0:00:17]}  Kc2 {[%clk 0:00:31]} 74. c8=N {[%clk 0:00:17]}  Kd3 {[%clk 0:00:31]} 75. Kb5 {[%clk 0:00:17]}  Kc2 {[%clk 0:00:32]} 76. Bc7 {[%clk 0:00:18]}  Kd3 {[%clk 0:00:33]} 77. a4 {[%clk 0:00:18]}  Kc2 {[%clk 0:00:34]} 78. a5 {[%clk 0:00:19]}  Kd3 {[%clk 0:00:35]} 79. a6 {[%clk 0:00:20]}  Kc2 {[%clk 0:00:36]} 80. a7 {[%clk 0:00:21]}  Kd3 {[%clk 0:00:37]} 81. a8=B {[%clk 0:00:19]}  Kc2 {[%clk 0:00:38]} 82. b8=R {[%clk 0:00:18]}  Kd3 {[%clk 0:00:38]} 83. Nb6 {[%clk 0:00:18]}  Kc2 {[%clk 0:00:39]} 84. Nc6 {[%clk 0:00:19]}  Kd3 {[%clk 0:00:40]} 85. Bb7 {[%clk 0:00:19]}  Kc2 {[%clk 0:00:41]} 86. Rd8 {[%clk 0:00:19]}  Kc3 {[%clk 0:00:41]} 87. Na4+ {[%clk 0:00:19]}  Kc2 {[%clk 0:00:42]} 88. Nb4+ {[%clk 0:00:20]}  Kb3 {[%clk 0:00:43]} 89. Rd3# {[%clk 0:00:19]} 1-0


[Site "https://www.chess.com"]

[Event "Titled Tuesday Blitz April 4 Early 2023"]
[White "Shuvalova, Polina"]
[Black "Ansh M Shah"]
[WhiteFideId "24171760"]
[BlackFideId "25033379"]
[WhiteElo "2281"]
[BlackElo "2084"]
[Result "1-0"]
[Round "01"]
[TimeControl "180+2"]
[Date "2023.04.04"]
[WhiteClock "0:01:00"]
[BlackClock "0:00:07"]

1. e4 {[%clk 0:02:54]}  c6 {[%clk 0:02:59]} 2. d4 {[%clk 0:02:52]}  d5 {[%clk 0:02:59]} 3. exd5 {[%clk 0:02:46]}  cxd5 {[%clk 0:02:59]} 4. Bd3 {[%clk 0:02:47]}  Nc6 {[%clk 0:02:59]} 5. c3 {[%clk 0:02:47]}  Nf6 {[%clk 0:02:59]} 6. Nf3 {[%clk 0:02:46]}  Bg4 {[%clk 0:02:55]} 7. Bf4 {[%clk 0:02:44]}  e6 {[%clk 0:02:55]} 8. Nbd2 {[%clk 0:02:44]}  Bd6 {[%clk 0:02:55]} 9. Bxd6 {[%clk 0:02:42]}  Qxd6 {[%clk 0:02:56]} 10. O-O {[%clk 0:02:38]}  O-O {[%clk 0:02:56]} 11. Re1 {[%clk 0:02:38]}  Ne7 {[%clk 0:02:54]} 12. Qc2 {[%clk 0:02:34]}  Bf5 {[%clk 0:02:53]} 13. Ne5 {[%clk 0:02:31]}  Bxd3 {[%clk 0:02:51]} 14. Nxd3 {[%clk 0:02:29]}  Nc6 {[%clk 0:02:50]} 15. a4 {[%clk 0:02:27]}  Rab8 {[%clk 0:02:49]} 16. Nf3 {[%clk 0:02:25]}  Rfc8 {[%clk 0:02:43]} 17. Re3 {[%clk 0:02:18]}  h6 {[%clk 0:01:47]} 18. h3 {[%clk 0:02:16]}  a6 {[%clk 0:01:41]} 19. Qe2 {[%clk 0:02:05]}  Ne4 {[%clk 0:01:36]} 20. Nfe5 {[%clk 0:02:02]}  Nxe5 {[%clk 0:01:25]} 21. Nxe5 {[%clk 0:02:00]}  Nf6 {[%clk 0:01:20]} 22. Rf3 {[%clk 0:01:52]}  b5 {[%clk 0:01:06]} 23. axb5 {[%clk 0:01:51]}  Rxb5 {[%clk 0:01:07]} 24. Nd3 {[%clk 0:01:42]}  Rcb8 {[%clk 0:00:57]} 25. Re3 {[%clk 0:01:34]}  Ne4 {[%clk 0:00:35]} 26. Qc2 {[%clk 0:01:33]}  Qc6 {[%clk 0:00:26]} 27. Ree1 {[%clk 0:01:31]}  Qc4 {[%clk 0:00:18]} 28. Ra4 {[%clk 0:01:27]}  Qc6 {[%clk 0:00:12]} 29. Rea1 {[%clk 0:01:27]}  R5b6 {[%clk 0:00:10]} 30. Ra5 {[%clk 0:01:22]}  Nd6 {[%clk 0:00:08]} 31. Rc5 {[%clk 0:01:04]}  Qb7 {[%clk 0:00:08]} 32. b4 {[%clk 0:01:04]}  Rc6 {[%clk 0:00:08]} 33. Qa4 {[%clk 0:01:02]}  Ne4 {[%clk 0:00:07]} 34. Rxc6 {[%clk 0:01:00]} 1-0


[Site "https://www.chess.com"]

[Event "Titled Tuesday Blitz April 4 Early 2023"]
[White "HamedWafa4"]
[Black "Domingo Nunez, Ruben"]
[BlackFideId "22245570"]
[WhiteElo "2363"]
[BlackElo "2404"]
[Result "0-1"]
[Round "01"]
[TimeControl "180+2"]
[Date "2023.04.04"]
[WhiteClock "0:01:04"]
[BlackClock "0:00:25"]

1. e4 {[%clk 0:02:58]}  g6 {[%clk 0:02:53]} 2. d4 {[%clk 0:02:57]}  Bg7 {[%clk 0:02:53]} 3. Nc3 {[%clk 0:02:58]}  c6 {[%clk 0:02:54]} 4. f4 {[%clk 0:02:57]}  d5 {[%clk 0:02:53]} 5. e5 {[%clk 0:02:58]}  f6 {[%clk 0:02:53]} 6. Nf3 {[%clk 0:02:57]}  Nh6 {[%clk 0:02:39]} 7. Bd3 {[%clk 0:02:47]}  Bg4 {[%clk 0:02:39]} 8. O-O {[%clk 0:02:43]}  O-O {[%clk 0:02:39]} 9. Be3 {[%clk 0:02:43]}  Nf5 {[%clk 0:02:32]} 10. Bxf5 {[%clk 0:02:39]}  Bxf5 {[%clk 0:02:33]} 11. Nh4 {[%clk 0:02:39]}  fxe5 {[%clk 0:02:21]} 12. Nxf5 {[%clk 0:02:21]}  Rxf5 {[%clk 0:02:22]} 13. fxe5 {[%clk 0:02:20]}  Qf8 {[%clk 0:02:20]} 14. Qg4 {[%clk 0:02:11]}  e6 {[%clk 0:02:20]} 15. Rxf5 {[%clk 0:02:10]}  Qxf5 {[%clk 0:02:20]} 16. Qxf5 {[%clk 0:02:07]}  gxf5 {[%clk 0:02:21]} 17. Ne2 {[%clk 0:02:08]}  Nd7 {[%clk 0:02:18]} 18. Kf2 {[%clk 0:02:06]}  Rc8 {[%clk 0:02:10]} 19. Nf4 {[%clk 0:02:06]}  Kf7 {[%clk 0:02:11]} 20. b4 {[%clk 0:02:03]}  Bf8 {[%clk 0:02:06]} 21. c3 {[%clk 0:02:01]}  b6 {[%clk 0:02:07]} 22. Rb1 {[%clk 0:01:59]}  Bh6 {[%clk 0:01:59]} 23. Nxd5 {[%clk 0:01:58]}  cxd5 {[%clk 0:01:59]} 24. Bxh6 {[%clk 0:01:58]}  Rxc3 {[%clk 0:01:59]} 25. Rc1 {[%clk 0:01:52]}  Rxc1 {[%clk 0:01:37]} 26. Bxc1 {[%clk 0:01:53]}  b5 {[%clk 0:01:38]} 27. Kf3 {[%clk 0:01:50]}  Nb6 {[%clk 0:01:37]} 28. h3 {[%clk 0:01:49]}  Na4 {[%clk 0:01:37]} 29. Ke2 {[%clk 0:01:42]}  Kg6 {[%clk 0:01:30]} 30. g4 {[%clk 0:01:40]}  fxg4 {[%clk 0:01:25]} 31. hxg4 {[%clk 0:01:40]}  h5 {[%clk 0:01:25]} 32. gxh5+ {[%clk 0:01:40]}  Kxh5 {[%clk 0:01:26]} 33. Kf3 {[%clk 0:01:39]}  Nc3 {[%clk 0:01:16]} 34. Bd2 {[%clk 0:01:35]}  Ne4 {[%clk 0:01:12]} 35. Be1 {[%clk 0:01:34]}  Kg5 {[%clk 0:01:11]} 36. Ke3 {[%clk 0:01:32]}  Kg4 {[%clk 0:01:11]} 37. Kd3 {[%clk 0:01:25]}  Kf3 {[%clk 0:01:00]} 38. Bh4 {[%clk 0:01:24]}  Nf2+ {[%clk 0:00:40]} 39. Kd2 {[%clk 0:01:19]}  Nh3 {[%clk 0:00:32]} 40. Kd3 {[%clk 0:01:10]}  Nf4+ {[%clk 0:00:32]} 41. Kc3 {[%clk 0:01:09]}  Ke4 {[%clk 0:00:31]} 42. Bf2 {[%clk 0:01:06]}  Ne2+ {[%clk 0:00:31]} 43. Kd2 {[%clk 0:01:06]}  Nxd4 {[%clk 0:00:28]} 44. Bg3 {[%clk 0:01:05]}  Nf3+ {[%clk 0:00:24]} 45. Ke2 {[%clk 0:01:03]}  Nxe5 {[%clk 0:00:25]} 46. Bf2 {[%clk 0:01:04]}  a6 {[%clk 0:00:25]} 0-1


[Site "https://www.chess.com"]

[Event "Titled Tuesday Blitz April 4 Early 2023"]
[White "Darini, Pouria"]
[Black "Ai, Evan"]
[WhiteFideId "12502200"]
[BlackFideId "2094770"]
[WhiteElo "2482"]
[BlackElo "1963"]
[Result "1-0"]
[Round "01"]
[TimeControl "180+2"]
[Date "2023.04.04"]
[WhiteClock "0:00:18"]
[BlackClock "0:00:16"]

1. e4 {[%clk 0:02:59]}  e5 {[%clk 0:02:54]} 2. Nf3 {[%clk 0:02:57]}  Nc6 {[%clk 0:02:54]} 3. Bb5 {[%clk 0:02:58]}  a6 {[%clk 0:02:51]} 4. Ba4 {[%clk 0:02:57]}  b5 {[%clk 0:02:50]} 5. Bb3 {[%clk 0:02:57]}  Nf6 {[%clk 0:02:51]} 6. d3 {[%clk 0:02:53]}  Bc5 {[%clk 0:02:45]} 7. a4 {[%clk 0:02:46]}  Bb7 {[%clk 0:02:40]} 8. Nc3 {[%clk 0:02:41]}  b4 {[%clk 0:02:31]} 9. Nd5 {[%clk 0:02:41]}  d6 {[%clk 0:02:30]} 10. Bg5 {[%clk 0:02:38]}  h6 {[%clk 0:02:30]} 11. Bxf6 {[%clk 0:02:37]}  gxf6 {[%clk 0:02:31]} 12. a5 {[%clk 0:02:15]}  f5 {[%clk 0:02:24]} 13. exf5 {[%clk 0:02:09]}  Nd4 {[%clk 0:02:24]} 14. Nxd4 {[%clk 0:02:08]}  Bxd4 {[%clk 0:02:24]} 15. Qh5 {[%clk 0:01:59]}  Bxb2 {[%clk 0:02:08]} 16. Rb1 {[%clk 0:01:49]}  Bd4 {[%clk 0:02:08]} 17. O-O {[%clk 0:01:23]}  Rg8 {[%clk 0:01:56]} 18. Qxh6 {[%clk 0:01:22]}  c6 {[%clk 0:00:46]} 19. Nf6+ {[%clk 0:01:16]}  Ke7 {[%clk 0:00:46]} 20. Nxg8+ {[%clk 0:00:44]}  Qxg8 {[%clk 0:00:47]} 21. f6+ {[%clk 0:00:44]}  Kd7 {[%clk 0:00:35]} 22. Qg7 {[%clk 0:00:43]}  Qxg7 {[%clk 0:00:33]} 23. fxg7 {[%clk 0:00:44]}  Rg8 {[%clk 0:00:30]} 24. Bxf7 {[%clk 0:00:39]}  Rxg7 {[%clk 0:00:30]} 25. Rxb4 {[%clk 0:00:27]}  Kc7 {[%clk 0:00:30]} 26. Rxd4 {[%clk 0:00:25]}  exd4 {[%clk 0:00:27]} 27. Bc4 {[%clk 0:00:19]}  d5 {[%clk 0:00:26]} 28. Bb3 {[%clk 0:00:19]}  Bc8 {[%clk 0:00:26]} 29. f3 {[%clk 0:00:18]}  Bh3 {[%clk 0:00:26]} 30. Rf2 {[%clk 0:00:18]}  Bf5 {[%clk 0:00:25]} 31. g4 {[%clk 0:00:18]}  Bd7 {[%clk 0:00:21]} 32. Re2 {[%clk 0:00:18]}  Kd6 {[%clk 0:00:22]} 33. h4 {[%clk 0:00:19]}  Rf7 {[%clk 0:00:22]} 34. Kg2 {[%clk 0:00:19]}  c5 {[%clk 0:00:22]} 35. Kg3 {[%clk 0:00:19]}  Be6 {[%clk 0:00:20]} 36. h5 {[%clk 0:00:18]}  Rg7 {[%clk 0:00:18]} 37. Kh4 {[%clk 0:00:17]}  c4 {[%clk 0:00:18]} 38. dxc4 {[%clk 0:00:17]}  dxc4 {[%clk 0:00:19]} 39. Rxe6+ {[%clk 0:00:17]}  Kxe6 {[%clk 0:00:20]} 40. Bxc4+ {[%clk 0:00:18]}  Kf6 {[%clk 0:00:20]} 41. Bxa6 {[%clk 0:00:14]}  Ra7 {[%clk 0:00:20]} 42. Bd3 {[%clk 0:00:15]}  Rxa5 {[%clk 0:00:19]} 43. g5+ {[%clk 0:00:16]}  Kg7 {[%clk 0:00:19]} 44. Kg4 {[%clk 0:00:16]}  Re5 {[%clk 0:00:18]} 45. h6+ {[%clk 0:00:17]}  Kh8 {[%clk 0:00:18]} 46. f4 {[%clk 0:00:18]}  Re1 {[%clk 0:00:18]} 47. Kf5 {[%clk 0:00:18]}  Kg8 {[%clk 0:00:17]} 48. Kf6 {[%clk 0:00:18]}  Rg1 {[%clk 0:00:16]} 49. g6 {[%clk 0:00:18]}  Kh8 {[%clk 0:00:16]} 50. g7+ {[%clk 0:00:18]} 1-0


[Site "https://www.chess.com"]

[Event "Titled Tuesday Blitz April 4 Early 2023"]
[White "Klepikov, Nikita"]
[Black "Fishchuk, Vladyslav"]
[WhiteFideId "24145220"]
[BlackFideId "34122117"]
[WhiteElo "2025"]
[BlackElo "2082"]
[Result "1-0"]
[Round "01"]
[TimeControl "180+2"]
[Date "2023.04.04"]
[WhiteClock "0:00:17"]
[BlackClock "0:00:07"]

1. e4 {[%clk 0:02:58]}  c5 {[%clk 0:02:59]} 2. Nf3 {[%clk 0:02:58]}  Nf6 {[%clk 0:02:59]} 3. e5 {[%clk 0:02:49]}  Nd5 {[%clk 0:02:59]} 4. c4 {[%clk 0:02:37]}  Nb6 {[%clk 0:02:57]} 5. Nc3 {[%clk 0:02:18]}  Nc6 {[%clk 0:02:56]} 6. d3 {[%clk 0:01:53]}  d5 {[%clk 0:02:53]} 7. exd6 {[%clk 0:01:37]}  e5 {[%clk 0:02:42]} 8. Nb5 {[%clk 0:01:20]}  Bxd6 {[%clk 0:02:42]} 9. Nxd6+ {[%clk 0:01:18]}  Qxd6 {[%clk 0:02:43]} 10. Bd2 {[%clk 0:01:16]}  Bf5 {[%clk 0:02:38]} 11. Bc3 {[%clk 0:01:16]}  Rd8 {[%clk 0:02:27]} 12. Be2 {[%clk 0:01:10]}  f6 {[%clk 0:02:26]} 13. O-O {[%clk 0:01:08]}  Bxd3 {[%clk 0:02:23]} 14. b3 {[%clk 0:01:00]}  Bxe2 {[%clk 0:02:19]} 15. Qxe2 {[%clk 0:01:00]}  Nd4 {[%clk 0:02:13]} 16. Qe4 {[%clk 0:00:48]}  Qc6 {[%clk 0:02:08]} 17. Qg4 {[%clk 0:00:37]}  Nxf3+ {[%clk 0:02:05]} 18. gxf3 {[%clk 0:00:38]}  O-O {[%clk 0:01:57]} 19. Rad1 {[%clk 0:00:36]}  Na8 {[%clk 0:01:46]} 20. Kh1 {[%clk 0:00:36]}  Nc7 {[%clk 0:01:45]} 21. Rg1 {[%clk 0:00:37]}  Ne6 {[%clk 0:01:45]} 22. Bd2 {[%clk 0:00:29]}  Rd3 {[%clk 0:01:32]} 23. Bh6 {[%clk 0:00:21]}  Qxf3+ {[%clk 0:00:51]} 24. Qxf3 {[%clk 0:00:21]}  Rxf3 {[%clk 0:00:51]} 25. Rd7 {[%clk 0:00:20]}  Rf7 {[%clk 0:00:49]} 26. Rd6 {[%clk 0:00:18]}  Nf8 {[%clk 0:00:39]} 27. Rg2 {[%clk 0:00:11]}  Rc3 {[%clk 0:00:37]} 28. Be3 {[%clk 0:00:11]}  b6 {[%clk 0:00:35]} 29. Rg1 {[%clk 0:00:11]}  Rd7 {[%clk 0:00:27]} 30. Rgd1 {[%clk 0:00:11]}  Rxd6 {[%clk 0:00:27]} 31. Rxd6 {[%clk 0:00:12]}  Rc2 {[%clk 0:00:25]} 32. Rd2 {[%clk 0:00:12]}  Rxd2 {[%clk 0:00:25]} 33. Bxd2 {[%clk 0:00:13]}  Kf7 {[%clk 0:00:25]} 34. Kg2 {[%clk 0:00:13]}  Ke6 {[%clk 0:00:26]} 35. Kf3 {[%clk 0:00:14]}  f5 {[%clk 0:00:23]} 36. Ke3 {[%clk 0:00:13]}  Nd7 {[%clk 0:00:23]} 37. Kd3 {[%clk 0:00:13]}  e4+ {[%clk 0:00:22]} 38. Kc3 {[%clk 0:00:13]}  h6 {[%clk 0:00:18]} 39. b4 {[%clk 0:00:13]}  g5 {[%clk 0:00:17]} 40. Kb3 {[%clk 0:00:13]}  cxb4 {[%clk 0:00:17]} 41. Kxb4 {[%clk 0:00:14]}  Nc5 {[%clk 0:00:16]} 42. Kb5 {[%clk 0:00:14]}  Kd6 {[%clk 0:00:15]} 43. a4 {[%clk 0:00:13]}  f4 {[%clk 0:00:14]} 44. Bb4 {[%clk 0:00:13]}  e3 {[%clk 0:00:14]} 45. fxe3 {[%clk 0:00:13]}  fxe3 {[%clk 0:00:14]} 46. a5 {[%clk 0:00:14]}  e2 {[%clk 0:00:13]} 47. axb6 {[%clk 0:00:15]}  axb6 {[%clk 0:00:14]} 48. Kxb6 {[%clk 0:00:15]}  g4 {[%clk 0:00:09]} 49. Bxc5+ {[%clk 0:00:15]}  Ke5 {[%clk 0:00:09]} 50. Bf2 {[%clk 0:00:15]}  h5 {[%clk 0:00:09]} 51. c5 {[%clk 0:00:16]}  Kf4 {[%clk 0:00:09]} 52. c6 {[%clk 0:00:15]}  Kf3 {[%clk 0:00:08]} 53. Bg3 {[%clk 0:00:15]}  Kg2 {[%clk 0:00:05]} 54. c7 {[%clk 0:00:15]}  Kh3 {[%clk 0:00:06]} 55. c8=Q {[%clk 0:00:15]}  h4 {[%clk 0:00:07]} 56. Bxh4 {[%clk 0:00:14]}  Kxh4 {[%clk 0:00:07]} 57. Qc1 {[%clk 0:00:15]}  g3 {[%clk 0:00:05]} 58. hxg3+ {[%clk 0:00:14]}  Kxg3 {[%clk 0:00:06]} 59. Qe1+ {[%clk 0:00:15]}  Kf3 {[%clk 0:00:07]} 60. Kc5 {[%clk 0:00:16]}  Ke3 {[%clk 0:00:07]} 61. Kc4 {[%clk 0:00:16]}  Kf3 {[%clk 0:00:07]} 62. Kd3 {[%clk 0:00:16]}  Kg2 {[%clk 0:00:07]} 63. Qxe2+ {[%clk 0:00:17]} 1-0


[Site "https://www.chess.com"]

[Event "Titled Tuesday Blitz April 4 Early 2023"]
[White "crosky"]
[Black "Manukyan, Sargis A."]
[BlackFideId "13303970"]
[WhiteElo "2347"]
[BlackElo "2187"]
[Result "0-1"]
[Round "01"]
[TimeControl "180+2"]
[Date "2023.04.04"]
[WhiteClock "0:00:01"]
[BlackClock "0:00:13"]

1. c4 {[%clk 0:02:59]}  e6 {[%clk 0:02:56]} 2. Nc3 {[%clk 0:02:59]}  Nf6 {[%clk 0:02:57]} 3. d4 {[%clk 0:02:58]}  d5 {[%clk 0:02:57]} 4. cxd5 {[%clk 0:02:58]}  exd5 {[%clk 0:02:56]} 5. Bg5 {[%clk 0:02:59]}  Be7 {[%clk 0:02:56]} 6. e3 {[%clk 0:02:59]}  O-O {[%clk 0:02:56]} 7. Bd3 {[%clk 0:03:00]}  h6 {[%clk 0:02:56]} 8. Bh4 {[%clk 0:02:59]}  c6 {[%clk 0:02:54]} 9. Qc2 {[%clk 0:02:59]}  Nbd7 {[%clk 0:02:42]} 10. Nge2 {[%clk 0:02:57]}  Re8 {[%clk 0:02:42]} 11. O-O {[%clk 0:02:57]}  Nf8 {[%clk 0:02:43]} 12. Rad1 {[%clk 0:02:56]}  Ne6 {[%clk 0:02:39]} 13. f3 {[%clk 0:02:51]}  Ng5 {[%clk 0:02:18]} 14. h3 {[%clk 0:02:28]}  Nh5 {[%clk 0:02:05]} 15. Bf2 {[%clk 0:02:22]}  Bd6 {[%clk 0:01:58]} 16. f4 {[%clk 0:02:05]}  Nxh3+ {[%clk 0:01:36]} 17. gxh3 {[%clk 0:02:05]}  Bxh3 {[%clk 0:01:36]} 18. Ng3 {[%clk 0:01:39]}  Nxg3 {[%clk 0:01:34]} 19. Bxg3 {[%clk 0:01:39]}  Rxe3 {[%clk 0:01:33]} 20. Qf2 {[%clk 0:01:26]}  Bxf1 {[%clk 0:00:59]} 21. Qxe3 {[%clk 0:01:26]}  Bxd3 {[%clk 0:00:59]} 22. Qxd3 {[%clk 0:01:23]}  Qd7 {[%clk 0:00:53]} 23. Re1 {[%clk 0:01:18]}  Qg4 {[%clk 0:00:50]} 24. Qe3 {[%clk 0:00:54]}  Kh7 {[%clk 0:00:40]} 25. Kf2 {[%clk 0:00:53]}  b5 {[%clk 0:00:26]} 26. Qf3 {[%clk 0:00:52]}  Qf5 {[%clk 0:00:26]} 27. a3 {[%clk 0:00:46]}  a5 {[%clk 0:00:26]} 28. Nd1 {[%clk 0:00:29]}  b4 {[%clk 0:00:25]} 29. Ne3 {[%clk 0:00:29]}  Qd3 {[%clk 0:00:20]} 30. f5 {[%clk 0:00:26]}  Bxg3+ {[%clk 0:00:19]} 31. Qxg3 {[%clk 0:00:25]}  Qd2+ {[%clk 0:00:15]} 32. Re2 {[%clk 0:00:25]}  Qxd4 {[%clk 0:00:15]} 33. f6 {[%clk 0:00:24]}  Qxf6+ {[%clk 0:00:15]} 34. Kg2 {[%clk 0:00:25]}  Qg6 {[%clk 0:00:14]} 35. Qxg6+ {[%clk 0:00:19]}  Kxg6 {[%clk 0:00:15]} 36. Rc2 {[%clk 0:00:20]}  bxa3 {[%clk 0:00:14]} 37. bxa3 {[%clk 0:00:20]}  Ra6 {[%clk 0:00:13]} 38. a4 {[%clk 0:00:19]}  Rb6 {[%clk 0:00:14]} 39. Rc5 {[%clk 0:00:18]}  f6 {[%clk 0:00:14]} 40. Rxa5 {[%clk 0:00:17]}  d4 {[%clk 0:00:15]} 41. Nc4 {[%clk 0:00:17]}  Rb4 {[%clk 0:00:15]} 42. Nd6 {[%clk 0:00:12]}  d3 {[%clk 0:00:14]} 43. Kf1 {[%clk 0:00:08]}  d2 {[%clk 0:00:14]} 44. Ke2 {[%clk 0:00:09]}  Rd4 {[%clk 0:00:14]} 45. Kd1 {[%clk 0:00:03]}  Rxd6 {[%clk 0:00:15]} 46. Rc5 {[%clk 0:00:02]}  Rd4 {[%clk 0:00:15]} 47. a5 {[%clk 0:00:02]}  Ra4 {[%clk 0:00:15]} 48. Kxd2 {[%clk 0:00:02]}  h5 {[%clk 0:00:16]} 49. Kc3 {[%clk 0:00:03]}  h4 {[%clk 0:00:17]} 50. Kb3 {[%clk 0:00:04]}  Ra1 {[%clk 0:00:17]} 51. Kb2 {[%clk 0:00:04]}  Ra4 {[%clk 0:00:16]} 52. Kb3 {[%clk 0:00:05]}  Ra1 {[%clk 0:00:10]} 53. Kb2 {[%clk 0:00:05]}  Re1 {[%clk 0:00:10]} 54. a6 {[%clk 0:00:05]}  Re8 {[%clk 0:00:11]} 55. Rxc6 {[%clk 0:00:03]}  Ra8 {[%clk 0:00:12]} 56. Kb3 {[%clk 0:00:01]}  h3 {[%clk 0:00:12]} 57. Kb4 {[%clk 0:00:01]}  h2 {[%clk 0:00:13]} 58. Rxf6+ {[%clk 0:00:01]}  gxf6 {[%clk 0:00:13]} 0-1


[Site "https://www.chess.com"]